bitfinex-derivatives/quotes_SOLF0:USTF0_20250130
["timestamp","ask_amount","ask_price","bid_price","bid_amount"]
[1738212532564,11.18911421,240.5,240.35,11.18911421]
[1738212532759,17.35612842,240.56,240.41,11.18911421]
[1738212532963,6.16701421,240.56,240.51,4.1579]
[1738212533463,6.16701421,240.56,240.5,4.1581]
[1738212533662,0.02856208,240.56,240.51,0.03072351]
[1738212536965,0.02856208,240.56,240.44,2.81809988]
[1738212537665,0.02856208,240.56,240.45,1.4215]
[1738212538061,0.02856208,240.56,240.5,4.158]
[1738212538268,11.18911421,240.65,240.5,11.18911421]
[1738212538464,11.18911421,240.68,240.53,11.18911421]
[1738212538667,11.18911421,240.68,240.57,4.1569]
[1738212539468,0.02946388,240.65,240.6,0.02808292]
[1738212539769,11.21857809,240.65,240.6,0.02808292]
[1738212540968,0.02946388,240.65,240.6,0.02808292]
[1738212541862,4.18506388,240.65,240.6,0.02808292]
[1738212542271,0.02946388,240.65,240.6,0.02808292]
[1738212543874,4.18506388,240.65,240.6,0.02808292]
[1738212544168,11.18911421,240.61,240.6,0.02808292]
[1738212548375,0.02946388,240.65,240.6,0.02808292]
[1738212552779,0.02946388,240.65,240.6,4.18448292]
[1738212552976,0.02946388,240.65,240.6,0.02808292]
[1738212553180,0.02946388,240.65,240.61,1.3245]
[1738212553682,0.02946388,240.65,240.62,4.156]
[1738212553979,0.02946388,240.65,240.61,1.3245]
[1738212557386,4.18496388,240.65,240.61,1.3245]
[1738212557587,0.02946388,240.65,240.61,1.3245]
[1738212557884,0.02946388,240.65,240.53,5.58867694]
[1738212558380,0.02946388,240.65,240.58,4.1568]
[1738212558988,11.18911421,240.64,240.48,11.18911421]
[1738212559177,11.18911421,240.61,240.45,200.67528641]
[1738212559385,0.02874435,240.58,240.45,200.67528641]
[1738212560082,11.18911421,240.67,240.55,11.18911421]
[1738212560276,4.1555,240.66,240.55,11.18911421]
[1738212560481,11.18911421,240.7,240.55,11.18911421]
[1738212561279,0.02991878,240.65,240.6,0.0310937]
[1738212562088,0.02991878,240.65,240.6,4.1874937]
[1738212563388,0.02991878,240.65,240.6,0.0310937]
[1738212563586,4.18551878,240.65,240.6,0.0310937]
[1738212564189,4.1557,240.64,240.6,0.0310937]
[1738212565892,4.18551878,240.65,240.6,0.0310937]
[1738212567294,0.02991878,240.65,240.6,0.0310937]
[1738212567490,4.1558,240.64,240.6,0.0310937]
[1738212567696,11.18911421,240.64,240.6,0.0310937]
[1738212568791,4.1562,240.61,240.6,0.0310937]
[1738212572104,0.02991878,240.65,240.6,0.0310937]
[1738212573004,11.18911421,240.64,240.6,0.0310937]
[1738212573304,15.34481421,240.64,240.6,0.0310937]
[1738212574405,11.18911421,240.64,240.6,0.0310937]
[1738212574602,11.18911421,240.61,240.49,1.3455]
[1738212574801,11.18911421,240.56,240.49,1.3455]
[1738212575707,0.02937649,240.55,240.49,1.3455]
[1738212576508,4.1578,240.52,240.43,4.1592]
[1738212576712,11.18911421,240.56,240.44,1.3689]
[1738212576914,0.02865464,240.5,240.44,1.3689]
[1738212577114,0.02865464,240.5,240.45,4.1589]
[1738212578512,0.02865464,240.5,240.42,2.7934869]
[1738212579110,0.02865464,240.5,240.45,4.1589]
[1738212580415,0.02865464,240.5,240.46,4.1588]
[1738212580809,0.02865464,240.5,240.42,2.7934869]
[1738212581016,11.18911421,240.59,240.49,4.1582]
[1738212581213,1.4522,240.67,240.39,2.6787]
[1738212581214,13.92911421,240.62,240.48,11.18911421]
[1738212581409,13.92911421,240.62,240.49,1.4425]
[1738212581714,13.92911421,240.62,240.51,4.1578]
[1738212582106,11.18911421,240.62,240.49,1.4425]
[1738212582308,0.02680441,240.59,240.54,0.02792355]
[1738212582706,4.157,240.57,240.54,0.02792355]
[1738212591817,4.1568,240.58,240.54,0.02792355]
[1738212592016,0.02680441,240.59,240.54,0.02792355]
[1738212592418,4.1568,240.58,240.54,0.02792355]
[1738212592615,0.02680441,240.59,240.54,0.02792355]
[1738212592826,11.21591862,240.59,240.54,0.02792355]
[1738212593423,4.1573,240.55,240.54,0.02792355]
[1738212595021,0.02680441,240.59,240.54,0.02792355]
[1738212596726,4.18340441,240.59,240.54,0.02792355]
[1738212597327,0.02680441,240.59,240.54,0.02792355]
[1738212597520,4.1568,240.58,240.54,0.02792355]
[1738212597724,0.02680441,240.59,240.54,0.02792355]
[1738212598527,11.21591862,240.59,240.44,0.0624965]
[1738212598829,11.18911421,240.59,240.44,0.0624965]
[1738212599129,4.157,240.57,240.49,4.1583]
[1738212599728,0.03197035,240.55,240.49,4.1583]
[1738212600227,4.1577,240.53,240.45,4.1589]
[1738212600628,0.03025584,240.51,240.45,4.1589]
[1738212602425,0.03025584,240.51,240.4,12.57611421]
[1738212602627,0.03025584,240.51,240.43,11.18911421]
[1738212602929,0.03025584,240.51,240.46,11.18911421]
[1738212603132,0.03025584,240.51,240.43,11.18911421]
[1738212603530,0.03025584,240.51,240.48,4.1584]
[1738212606430,0.03025584,240.51,240.44,1.3864]
[1738212606724,0.03025584,240.51,240.46,4.1587]
[1738212607329,0.03025584,240.51,240.44,1.3864]
[1738212607531,0.03025584,240.51,240.5,4.1581]
[1738212607729,12.59241421,240.64,240.49,11.18911421]
[1738212607931,12.59241421,240.64,240.5,1.3975]
[1738212608227,4.1564,240.6,240.5,1.3975]
[1738212608729,4.1562,240.62,240.5,1.3975]
[1738212608934,0.02804398,240.57,240.53,0.02862579]
[1738212610134,0.02804398,240.57,240.55,4.1571]
[1738212611834,0.02804398,240.57,240.56,11.18911421]
[1738212615530,1.3352,240.71,240.56,11.18911421]
[1738212615531,4.1547,240.71,240.56,11.18911421]
[1738212615732,11.18911421,240.76,240.6,11.18911421]
[1738212615934,11.18911421,240.76,240.61,1.3306]
[1738212616437,4.1543,240.73,240.65,4.1555]
[1738212616631,0.02820324,240.71,240.67,0.0262354]
[1738212618842,0.02820324,240.71,240.69,4.1548]
[1738212619036,0.02820324,240.71,240.63,11.18911421]
[1738212619037,0.02820324,240.71,240.63,2.81406126]
[1738212619236,0.02820324,240.71,240.66,11.18911421]
[1738212619440,5.78864818,240.78,240.72,4.1543]
[1738212619740,2.74,240.85,240.69,11.18911421]
[1738212620132,11.18911421,240.86,240.74,4.1539]
[1738212620336,5.4423,240.88,240.72,11.18911421]
[1738212620537,11.18911421,240.86,240.72,11.18911421]
[1738212620738,0.02710748,240.82,240.78,0.02872255]
[1738212624339,0.02710748,240.82,240.8,4.1529]
[1738212624843,0.02710748,240.82,240.78,0.02872255]
[1738212631347,0.02710748,240.82,240.78,4.18202255]
[1738212631751,0.02710748,240.82,240.78,0.02872255]
[1738212631946,0.02710748,240.82,240.79,4.1531]
[1738212632550,0.02710748,240.82,240.78,0.02872255]
[1738212636654,0.02710748,240.82,240.79,4.1531]
[1738212636851,0.02710748,240.82,240.78,0.02872255]
[1738212637656,0.02710748,240.82,240.81,4.1528]
[1738212641368,0.02710748,240.82,240.78,1.46599686]
[1738212642159,0.02710748,240.82,240.79,4.1531]
[1738212642365,0.02710748,240.82,240.78,1.49296657]
[1738212642761,0.02710748,240.82,240.81,4.1528]
[1738212650172,0.02710748,240.82,240.78,0.02696971]
[1738212650969,0.02710748,240.82,240.79,4.1531]
[1738212651269,0.02710748,240.82,240.78,0.02696971]
[1738212651767,0.02710748,240.82,240.79,7.15116679]
[1738212652070,0.02710748,240.82,240.81,4.1528]
[1738212652471,0.02710748,240.82,240.81,11.30396679]
[1738212652771,0.02710748,240.82,240.81,4.1528]
[1738212653269,0.02710748,240.82,240.78,0.02696971]
[1738212653469,0.02710748,240.82,240.79,4.153]
[1738212654870,0.02710748,240.82,240.78,0.02696971]
[1738212655071,0.02710748,240.82,240.81,4.1528]
[1738212661275,0.02710748,240.82,240.77,1.44572909]
[1738212661477,0.02710748,240.82,240.79,11.16985008]
[1738212662175,7.48e-06,240.82,240.81,4.1528]
[1738212662476,2.72,241.03,240.79,11.16985008]
[1738212662781,1.311,241.02,240.91,11.16985008]
[1738212663278,11.16985008,241.01,240.85,15.38625008]
[1738212663474,0.02888883,240.99,240.94,0.03165123]
[1738212664873,0.02888883,240.99,240.94,4.18215123]
[1738212665074,0.02888883,240.99,240.94,0.03165123]
[1738212665274,5.76977105,241.05,240.97,11.16985008]
[1738212665275,1.39837105,241.05,240.97,11.16985008]
[1738212665581,171.04281718,241.2,241.04,11.16985008]
[1738212665968,5.76777401,241.15,241.08,11.16985008]
[1738212666167,5.76777401,241.15,241.12,11.16985008]
[1738212666574,0.02632112,241.14,241.12,11.16985008]
[1738212667077,0.02632112,241.14,241.09,11.19660163]
[1738212667278,0.02632112,241.14,241.09,0.02675155]
[1738212668076,11.16985008,241.13,241.02,189.4861722]
[1738212668377,0.02632112,241.14,240.97,11.16985008]
[1738212668378,11.16985008,241.1,240.97,11.16985008]
[1738212668575,4.1486,241.06,240.96,4.1502]
[1738212668772,4.1486,241.06,241.04,143.47127112]
[1738212668976,2.72,241.05,240.85,11.16985008]
[1738212669276,11.19870358,240.97,240.93,0.03100886]
[1738212669477,0.0288535,240.97,240.93,0.03100886]
[1738212670176,11.19870358,240.97,240.93,0.03100886]
[1738212670575,0.0288535,240.97,240.93,0.03100886]
[1738212673783,0.0288535,240.97,240.95,4.1503]
[1738212675084,1.4244,241.08,240.93,17.88167351]
[1738212675379,1.4244,241.08,240.93,17.85066465]
[1738212675580,17.85066465,241.13,240.93,17.85066465]
[1738212675581,17.85066465,241.13,240.94,1.3116]
[1738212675780,17.85066465,241.13,240.94,2.6527]
[1738212675982,2.72,241.14,240.94,2.6527]
[1738212676383,0.02803997,241.06,241.02,0.03036818]
[1738212678181,0.02803997,241.06,241.03,4.149]
[1738212678384,0.02803997,241.06,241.02,0.03036818]
[1738212679182,0.02803997,241.06,241.04,4.1487]
[1738212679882,0.02803997,241.06,241.02,0.03036818]
[1738212679883,0.02803997,241.06,241.02,4.17936818]
[1738212680189,0.02803997,241.06,241.02,0.03036818]
[1738212680687,0.02803997,241.06,241.04,4.1488]
[1738212681386,0.02803997,241.06,240.97,8.13873075]
[1738212682286,0.02803997,241.06,241.03,4.1489]
[1738212682680,0.02803997,241.06,241.04,4.1487]
[1738212683385,0.02803997,241.06,241.02,0.03101847]
[1738212683881,4.1489,241.04,241.02,0.03101847]
[1738212684385,0.02803997,241.06,241.02,0.03101847]
[1738212685584,0.02803997,241.06,241.03,4.149]
[1738212685886,0.02803997,241.06,241.02,0.03101847]
[1738212686082,0.02803997,241.06,241.02,4.18021847]
[1738212686283,0.02803997,241.06,241.02,0.03101847]
[1738212687088,0.02803997,241.06,241.04,4.1488]
[1738212688992,4.1469,241.16,241.08,4.1481]
[1738212689189,1.3668,241.17,241.08,4.1481]
[1738212689692,5.5134,241.17,240.98,2.7983]
[1738212689890,1.3668,241.17,240.98,2.7983]
[1738212690090,0.02931175,241.1,241.05,0.02799876]
[1738212690290,4.1462,241.2,240.98,2.7983]
[1738212690488,0.03191142,241.1,241.05,0.02768167]
[1738212690695,4.1458,241.22,241.02,17.85066465]
[1738212690995,1.3772,241.23,241.02,17.85066465]
[1738212691288,4.1464,241.18,241.11,4.1475]
[1738212691698,17.85066465,241.2,241.02,207.33683685]
[1738212691991,17.85066465,241.03,240.87,331.1855295]
[1738212692298,4.1494,241.01,240.87,331.1855295]
[1738212692592,17.85066465,241.03,240.88,4.1515]
[1738212692794,17.85066465,241.03,240.87,331.1855295]
[1738212693195,0.02714898,240.97,240.93,0.02683731]
[1738212693796,4.17724898,240.97,240.93,0.02683731]
[1738212694201,0.02714898,240.97,240.93,0.02683731]
[1738212695489,4.17724898,240.97,240.93,0.02683731]
[1738212695892,0.02714898,240.97,240.93,0.02683731]
[1738212696089,4.1505,240.95,240.93,0.02683731]
[1738212696595,0.02714898,240.97,240.93,0.02683731]
[1738212697193,17.85066465,240.95,240.93,0.02683731]
[1738212697393,22.00116465,240.95,240.93,0.02683731]
[1738212698599,4.151,240.92,240.82,4.1525]
[1738212698793,17.85066465,240.95,240.78,1.3872]
[1738212699390,17.85066465,240.95,240.84,4.1521]
[1738212699593,17.85066465,240.95,240.78,1.3872]
[1738212699793,17.85066465,240.91,240.87,0.02663709]
[1738212700095,17.85066465,240.91,240.84,4.1522]
[1738212700294,17.88150689,240.91,240.87,0.02991275]
[1738212703195,0.03084224,240.91,240.87,4.18161275]
[1738212703397,0.03084224,240.91,240.87,0.02991275]
[1738212703799,0.03084224,240.91,240.76,17.85066465]
[1738212703996,17.85066465,240.95,240.76,17.85066465]
[1738212704499,20.59066465,240.99,240.76,17.85066465]
[1738212704903,0.03159643,240.9,240.76,17.85066465]
[1738212705701,22.00046465,240.99,240.8,17.85066465]
[1738212706495,22.00046465,240.99,240.85,4.152]
[1738212706696,22.00046465,240.99,240.8,17.85066465]
[1738212706895,0.02770776,240.94,240.9,0.02991082]
[1738212707202,4.1488,241.05,240.99,4.1496]
[1738212707396,20.52836465,241.07,240.85,207.33683685]
[1738212707597,19.19886465,241.07,240.85,207.33683685]
[1738212707795,4.1489,241.04,240.85,207.33683685]
[1738212708003,19.19886465,241.07,240.85,207.33683685]
[1738212708199,0.03084846,240.97,240.92,0.03125505]
[1738212708505,19.19886465,241.07,240.98,4.1498]
[1738212708903,19.19886465,241.07,240.85,207.33683685]
[1738212709204,19.19886465,241.07,240.86,1.4254]
[1738212709405,17.85066465,241.03,240.86,1.4254]
[1738212709605,0.02686803,240.99,240.94,0.0303365]
[1738212709799,0.02686803,240.99,240.94,4.1808365]
[1738212710005,0.02686803,240.99,240.94,0.0303365]
[1738212710304,0.02686803,240.99,240.97,4.1499]
[1738212711803,0.02686803,240.99,240.94,0.0303365]
[1738212712008,0.02686803,240.99,240.95,4.1502]
[1738212712208,0.02686803,240.99,240.94,0.0303365]
[1738212713007,17.87753268,240.99,240.94,0.0303365]
[1738212713707,4.1503,240.96,240.94,0.0303365]
[1738212714315,4.1501,240.97,240.94,0.0303365]
[1738212714517,17.87753268,240.99,240.94,0.0303365]
[1738212715112,4.1499,240.98,240.94,0.0303365]
[1738212715812,17.87753268,240.99,240.94,0.0303365]
[1738212716008,0.02686803,240.99,240.94,0.0303365]
[1738212716411,0.02686803,240.99,240.97,4.15]
[1738212719820,17.85066465,241.11,240.94,0.0303365]
[1738212720017,2.72,241.14,240.96,17.85066465]
[1738212720212,4.1474,241.13,241.04,4.1487]
[1738212720412,2.72,241.14,241.04,4.1487]
[1738212720723,2.72,241.14,240.97,1.3676]
[1738212720917,0.02852112,241.11,241.07,0.0302567]
[1738212721620,0.02852112,241.11,240.97,1.3676]
[1738212721621,4.1487,241.05,240.97,1.3676]
[1738212721821,17.85066465,241.07,240.92,189.4861722]
[1738212723022,0.02687316,241.02,240.97,0.02930934]
[1738212723524,4.1496,241.0,240.97,0.02930934]
[1738212723821,0.02687316,241.02,240.97,0.02930934]
[1738212724424,0.02687316,241.02,240.88,17.85066465]
[1738212724622,1.3132,241.06,240.88,17.85066465]
[1738212724921,4.1497,240.99,240.85,268.34998568]
[1738212725122,17.85066465,241.03,240.86,1.3213]
[1738212725418,0.03118372,240.97,240.92,0.03051112]
[1738212725824,0.03118372,240.97,240.93,4.1506]
[1738212726021,0.03118372,240.97,240.92,0.03051112]
[1738212726822,0.03118372,240.97,240.95,4.1503]
[1738212729720,0.03118372,240.97,240.93,4.1506]
[1738212730418,0.03118372,240.97,240.94,4.1505]
[1738212730719,0.03118372,240.97,240.92,0.03051112]
[1738212730927,4.18128372,240.97,240.92,0.03051112]
[1738212731117,0.03118372,240.97,240.92,0.03051112]
[1738212731624,0.03118372,240.97,240.92,4.18141112]
[1738212731825,0.03118372,240.97,240.92,0.03051112]
[1738212733929,0.03118372,240.97,240.96,4.1502]
[1738212734132,11.15937292,241.07,240.92,0.03051112]
[1738212734324,11.15937292,241.1,240.94,11.15937292]
[1738212734521,1.404,241.11,240.95,17.84100086]
[1738212735221,0.02849094,241.05,241.01,0.02724043]
[1738212736126,0.02849094,241.05,241.03,4.1488]
[1738212737529,0.02849094,241.05,241.01,0.02724043]
[1738212738125,0.02849094,241.05,241.02,4.1491]
[1738212738329,0.02849094,241.05,241.01,0.02724043]
[1738212739122,0.02849094,241.05,241.03,4.1489]
[1738212739635,0.02849094,241.05,241.01,4.17644043]
[1738212739834,0.02849094,241.05,241.01,0.02724043]
[1738212740734,4.1492,241.03,241.01,0.02724043]
[1738212740934,21.99020086,241.03,241.01,0.02724043]
[1738212741431,17.84100086,241.03,241.01,0.02724043]
[1738212741629,4.17729094,241.05,241.01,0.02724043]
[1738212742232,0.02849094,241.05,241.01,0.02724043]
[1738212744032,4.149,241.03,241.01,0.02724043]
[1738212745239,0.02849094,241.05,240.89,182.55124996]
[1738212745535,19.59900086,241.11,240.91,17.84100086]
[1738212745737,4.1482,241.08,240.97,4.15]
[1738212745935,19.59900086,241.11,240.91,17.84100086]
[1738212746437,0.02958334,241.03,240.99,0.02718289]
[1738212746839,0.02958334,241.03,241.0,4.1495]
[1738212747037,0.02958334,241.03,240.99,0.02718289]
[1738212747636,0.02958334,241.03,241.01,4.1493]
[1738212750336,0.02958334,241.03,241.02,4.1492]
[1738212751237,0.02958334,241.03,240.99,0.02718289]
[1738212752341,4.17858334,241.03,240.99,0.02718289]
[1738212753843,0.02958334,241.03,240.99,0.02718289]
[1738212758244,4.1492,241.02,240.99,0.02718289]
[1738212758844,4.17858334,241.03,240.99,0.02718289]
[1738212759544,0.02958334,241.03,241.01,4.1492]
[1738212760449,0.02958334,241.03,241.02,4.1492]
[1738212761548,1.404,241.11,241.02,4.1491]
[1738212761746,1.404,241.11,240.98,11.15646969]
[1738212761947,5.5517,241.11,240.98,11.15646969]
[1738212762655,0.02867152,241.07,241.02,0.03169847]
[1738212762954,0.02867152,241.07,241.03,4.1488]
[1738212763247,0.02867152,241.07,241.02,0.03169847]
[1738212763849,4.1485,241.06,241.02,0.03169847]
[1738212766757,11.15646969,241.06,240.92,1.415]
[1738212767553,11.15646969,241.03,240.9,8.37099176]
[1738212767757,0.0269859,241.01,240.97,0.02677431]
[1738212769459,4.1763859,241.01,240.97,0.02677431]
[1738212769659,11.15646969,241.0,240.97,0.02677431]
[1738212770159,15.30606969,241.0,240.97,0.02677431]
[1738212770363,11.15646969,241.0,240.85,141.6993573]
[1738212770564,15.30746969,240.92,240.85,145.8513573]
[1738212770859,11.15646969,240.92,240.85,145.8513573]
[1738212771059,4.1507,240.94,240.86,4.1519]
[1738212771260,11.15646969,240.95,240.85,141.6993573]
[1738212771663,0.02871518,240.92,240.88,0.0297743]
[1738212778775,0.02871518,240.92,240.89,4.1514]
[1738212780477,0.02871518,240.92,240.9,4.1512]
[1738212781373,0.02871518,240.92,240.88,0.0297743]
[1738212781671,0.02871518,240.92,240.88,4.1811743]
[1738212781868,0.02871518,240.92,240.88,0.0297743]
[1738212783177,0.02871518,240.92,240.88,4.1813743]
[1738212784881,0.02871518,240.92,240.88,0.0297743]
[1738212786081,0.02871518,240.92,240.9,4.1511]
[1738212786275,0.02871518,240.92,240.88,0.0297743]
[1738212788475,4.17971518,240.92,240.8,196.51771965]
[1738212788878,4.1517,240.88,240.8,5.5138]
[1738212789083,11.15646969,240.89,240.74,12.55576969]
[1738212789385,11.15646969,240.86,240.74,12.55576969]
[1738212789684,0.02933404,240.84,240.74,1.3993]
[1738212789879,11.15646969,240.8,240.71,147.37880463]
[1738212790073,11.15646969,240.83,240.76,4.1536]
[1738212790278,0.02889652,240.78,240.76,4.1536]
[1738212790782,0.02889652,240.78,240.74,4.1539]
[1738212790985,0.02889652,240.78,240.71,152.85582699]
[1738212791380,0.02889652,240.78,240.76,4.1536]
[1738212791980,0.02889652,240.78,240.71,152.85582699]
[1738212792181,0.02889652,240.78,240.74,4.1539]
[1738212793684,0.02889652,240.78,240.75,4.1538]
[1738212794085,0.02889652,240.78,240.71,11.15646969]
[1738212795088,0.02889652,240.78,240.76,4.1536]
[1738212800382,4.1519,240.87,240.74,11.15646969]
[1738212800689,1.4503,240.89,240.83,4.1524]
[1738212801591,0.03149906,240.88,240.84,0.02987128]
[1738212801893,0.03149906,240.88,240.86,4.1519]
[1738212802191,0.03149906,240.88,240.84,0.02987128]
[1738212803089,0.03149906,240.88,240.87,4.1518]
[1738212803990,0.03149906,240.88,240.85,4.152]
[1738212804694,0.03149906,240.88,240.86,4.1518]
[1738212806991,0.03149906,240.88,240.85,4.1521]
[1738212807192,0.03149906,240.88,240.84,0.02987128]
[1738212807592,0.03149906,240.88,240.86,4.1519]
[1738212809098,0.03149906,240.88,240.83,1.43868444]
[1738212811898,0.03149906,240.88,240.81,1.3396]
[1738212814307,0.03149906,240.88,240.85,11.15646969]
[1738212814497,9.93391033,240.96,240.85,11.15646969]
[1738212814703,15.30636969,240.99,240.85,11.15646969]
[1738212814897,4.1499,240.99,240.85,11.15646969]
[1738212815505,4.1499,240.99,240.9,0.02680468]
[1738212815705,0.03003192,240.94,240.9,0.02680468]
[1738212817206,4.18063192,240.94,240.9,0.02680468]
[1738212817996,0.03003192,240.94,240.9,0.02680468]
[1738212822107,4.1508,240.93,240.9,0.02680468]
[1738212822608,0.03003192,240.94,240.9,0.02680468]
[1738212824205,0.03003192,240.94,240.93,4.1507]
[1738212825206,11.15646969,241.08,240.99,4.1497]
[1738212825608,4.1485,241.06,240.93,11.15646969]
[1738212826006,4.1485,241.06,240.98,4.1498]
[1738212826211,0.02863199,241.04,241.0,0.03018484]
[1738212826910,4.17753199,241.04,241.0,0.03018484]
[1738212827903,0.02863199,241.04,241.0,0.03018484]
[1738212828108,4.1491,241.03,241.0,0.03018484]
[1738212828906,4.1492,241.02,241.0,0.03018484]
[1738212830115,0.02863199,241.04,241.0,0.03018484]
[1738212830614,4.1491,241.03,241.0,0.03018484]
[1738212831012,0.02863199,241.04,241.0,0.03018484]
[1738212831513,11.15646969,241.02,240.87,11.15646969]
[1738212832115,4.1495,241.01,240.92,4.1509]
[1738212832315,4.1495,241.01,240.87,11.15646969]
[1738212832616,0.0273312,240.96,240.92,0.03146872]
[1738212835118,4.1776312,240.96,240.92,0.03146872]
[1738212835314,0.0273312,240.96,240.92,0.03146872]
[1738212835820,15.30716969,240.93,240.92,0.03146872]
[1738212836418,4.1512,240.91,240.84,4.1522]
[1738212836620,11.15646969,240.93,240.81,141.6993573]
[1738212837223,11.15646969,240.93,240.8,1.4204]
[1738212837418,0.03178157,240.89,240.8,1.4204]
[1738212838126,0.03178157,240.89,240.82,4.1526]
[1738212838327,0.03178157,240.89,240.8,1.4204]
[1738212839226,0.03178157,240.89,240.83,4.1524]
[1738212839727,0.03178157,240.89,240.86,4.1519]
[1738212840522,0.03178157,240.89,240.82,4.1526]
[1738212840824,0.03178157,240.89,240.8,1.4204]
[1738212841021,4.152,240.86,240.8,1.4204]
[1738212841227,4.152,240.86,240.78,4.1532]
[1738212841625,4.152,240.86,240.79,4.1531]
[1738212842021,0.02905562,240.85,240.79,4.1531]
[1738212842828,0.02905562,240.85,240.76,1.36]
[1738212843028,0.02905562,240.85,240.8,4.1529]
[1738212843329,0.02905562,240.85,240.78,11.15646969]
[1738212843528,0.02905562,240.85,240.82,4.1526]
[1738212843729,0.02905562,240.85,240.78,11.15646969]
[1738212843933,0.02905562,240.85,240.76,1.36]
[1738212844531,0.02905562,240.85,240.8,4.153]
[1738212845235,0.02905562,240.85,240.81,4.1528]
[1738212845532,0.02905562,240.85,240.76,1.36]
[1738212845933,0.02905562,240.85,240.82,4.1526]
[1738212847029,0.02905562,240.85,240.84,4.1523]
[1738212849132,0.02905562,240.85,240.78,11.15646969]
[1738212849333,0.02905562,240.85,240.76,1.36]
[1738212850736,0.02905562,240.85,240.81,4.1528]
[1738212852538,0.02905562,240.85,240.75,9.57554589]
[1738212852735,0.02905562,240.85,240.81,11.15646969]
[1738212852938,1.4417,240.92,240.88,4.1516]
[1738212853239,1.4417,240.92,240.81,11.15646969]
[1738212853639,4.1507,240.94,240.84,4.1521]
[1738212853941,4.1511,240.91,240.81,11.15646969]
[1738212854133,4.17860662,240.91,240.87,0.02873589]
[1738212855340,0.02750662,240.91,240.87,0.02873589]
[1738212856935,0.02750662,240.91,240.87,4.18043589]
[1738212857142,0.02750662,240.91,240.87,0.02873589]
[1738212858244,4.17860662,240.91,240.87,0.02873589]
[1738212858945,0.02750662,240.91,240.87,0.02873589]
[1738212861541,11.15646969,240.9,240.77,1.4272]
[1738212861744,1.3502,240.89,240.77,1.4272]
[1738212862151,11.15646969,240.87,240.77,1.4272]
[1738212862350,11.15646969,240.87,240.76,4.1536]
[1738212862551,7.15178335,240.83,240.76,4.1536]
[1738212862751,7.15178335,240.83,240.75,7.15178335]
[1738212862950,7.15178335,240.83,240.79,4.1531]
[1738212863850,7.15178335,240.83,240.75,7.15178335]
[1738212864050,7.15178335,240.83,240.76,4.1535]
[1738212864251,7.15178335,240.83,240.75,7.15178335]
[1738212864447,4.17963597,240.84,240.77,11.30518335]
[1738212864656,4.1523,240.84,240.77,4.1534]
[1738212864954,0.02932213,240.83,240.77,4.1534]
[1738212865954,0.02932213,240.83,240.78,4.1533]
[1738212866150,0.02932213,240.83,240.73,11.17340294]
[1738212866546,0.02932213,240.83,240.76,4.1537]
[1738212866751,0.02932213,240.83,240.73,11.17340294]
[1738212867258,0.02932213,240.83,240.78,4.1532]
[1738212868054,0.02932213,240.83,240.79,4.1531]
[1738212868354,0.02932213,240.83,240.8,11.17340294]
[1738212868753,0.02932213,240.83,240.82,4.1526]
[1738212868949,0.02932213,240.83,240.77,11.17340294]
[1738212869153,0.02932213,240.83,240.82,4.1526]
[1738212870358,4.1512,240.91,240.85,4.1521]
[1738212870657,1.435,240.95,240.8,11.17340294]
[1738212870858,4.1509,240.93,240.8,11.17340294]
[1738212871261,1.435,240.95,240.83,11.17340294]
[1738212871462,5.5854,240.95,240.89,4.1514]
[1738212871657,0.02681733,240.91,240.89,4.1514]
[1738212871858,0.02681733,240.91,240.9,0.0269035]
[1738212872159,0.02681733,240.91,240.83,11.17340294]
[1738212872359,0.02681733,240.91,240.88,0.02690218]
[1738212873064,0.02681733,240.91,240.88,4.17840218]
[1738212873262,0.02681733,240.91,240.88,0.02690218]
[1738212873962,0.02681733,240.91,240.85,11.17340294]
[1738212874160,0.02681733,240.91,240.89,4.1514]
[1738212878865,0.02681733,240.91,240.85,15.32540294]
[1738212879063,0.02681733,240.91,240.85,4.152]
[1738212879264,0.02681733,240.91,240.82,11.17340294]
[1738212880464,0.02681733,240.91,240.86,4.1519]
[1738212882566,0.02681733,240.91,240.84,4.1522]
[1738212882865,0.02681733,240.91,240.82,11.17340294]
[1738212883563,0.02681733,240.91,240.87,4.1516]
[1738212884365,0.02681733,240.91,240.88,4.1515]
[1738212884962,7.17170446,240.91,240.84,4.1523]
[1738212885162,7.14488713,240.89,240.84,4.1523]
[1738212885368,7.14488713,240.89,240.81,7.14488713]
[1738212885567,7.14488713,240.87,240.79,148.84424443]
[1738212885768,11.29668713,240.87,240.81,4.1528]
[1738212885973,0.02752977,240.85,240.81,7.14488713]
[1738212886166,11.29598713,240.91,240.86,4.1519]
[1738212886569,7.17577106,240.91,240.86,4.1519]
[1738212887068,0.03088393,240.91,240.85,7.14488713]
[1738212887265,0.03088393,240.91,240.88,4.1515]